Workbook

Sheet Vsebina
B2: Priloga 1
B14: Vstopne in izstopne tarifne postavke omrežnine za prenosni sistem zemeljskega plina v Sloveniji
B15: Poenostavljen tarifni model predstavlja matrični model določitve tarifnih postavk omrežnine in je pripravljen na podlagi (b) točke drugega odstavka 30. člena Uredbe Komisije (EU) 2017/460 z dne 16. marca 2017 o oblikovanju kodeksa omrežja o usklajenih tarifnih strukturah za plin
B19: Vsebina
B20: Določitev vstopnih in izstopnih tarifnih postavk omrežnine po matrični metodi
B24: Datum zadnje spremembe:
B25: 2019-03-28

Sheet Navodila
B3: =Vsebina!B20 -> Določitev vstopnih in izstopnih tarifnih postavk omrežnine po matrični metodi
B5: Uporabnik ima omogočen poenostavljen izračun vstopnih in izstopnih tarifnih postavk omrežnine za posamezno vstopno oziroma izstopno točko na podlagi vnosa povprečnega dnevnega zakupa v posamezni vstopno oziroma izstopni točki (zeleno obarvana polja).
B7: Pri iskanju ustreznega korekcijskega faktorja vstopnih in izstopnih tarif za dosego pričakovanega ciljnega prihodka se uporablja Excelov dodatek "Excel Solver", katerega mora uporabnik predhodno omogočiti (Datoteka → Možnosti → Dodatki → Excel dodatki → Reševalnik)
B9: Postopek uporabniškega izračuna:
B11: Vnos povprečnega dnevnega zakupa zmogljivosti v posamezni vstopni oziroma izstopni točki , ki ne sme presegati tehnične zmogljivosti posamezne točke prenosnega sistema
B25: Tabela za vnos povprečnega dnevnega zakupa prenosne zmogljivosti v posamezni vstopno / izstopni točki
B27: Aktiviranje Excel dodatka "Reševalnik" in nastavljanje ciljnega upravičenega prihodka na strani operaterja prenosnega sistema (upravičen prihodek operaterja prenosnega sistema za leto 2019 znaša 42.001.567 EUR). V primeru da je spremenjen le povprečen dnevni zakup zmogljivosti v posamezni točki, se izvede le ukaz "Reši", ki izračuna ustrezen korekcijski faktor - faktor vstopno/izstopnih tarif za dosego pričakovanega ciljnega prihodka in posledično izračun ustreznih vstopnih in izstopnih tarif.
B54: Pogovorno okno Excelovega "Reševalnika"

Sheet Matrični model
H1: =Vsebina!B25 -> 2019-03-28
B2: =Vsebina!B14 -> Vstopne in izstopne tarifne postavke omrežnine za prenosni sistem zemeljskega plina v Sloveniji
B4: =Vsebina!B20 -> Določitev vstopnih in izstopnih tarifnih postavk omrežnine po matrični metodi
B9: ="Prenosni sistem zemeljskega plina v Republiki Sloveniji - Vstopno/Izstopne točke in tarife za regulatorno leto 2020" -> Prenosni sistem zemeljskega plina v Republiki Sloveniji - Vstopno/Izstopne točke in tarife za regulatorno leto 2020
B12: Tabela 1. Pretoki v dnevu vršne obremenitve prenosnega sistema
B14: Odjem zemeljskega plina | C14: Pretok [kWh/dan]
B15: Odjem v točki C (Odsek B-C) | C15: 26836766
B16: Odjem v točki E (Odsek D-E) | C16: 53705604
B17: Odjem v točki F (Odsek D-F) | C17: 25886804
B18: Skupaj | C18: =SUM(C15:C17) -> 106429174
B20: Dobava zemeljskega plina | C20: 79592408
B21: Dobava v točki A (Odsek A-B) | C21: 106429174
B22: Skupaj | C22: =C21 -> 106429174
B24: Opomba:
B25: Pretoki ob vršni obremenitvi na dan 26.2.2018
F26: Shema prenosnega sistema porazdeljena po odsekih (na dan 1.1.2019)
B28: Določitev vstopni/Izstopnih tarif prenosnega sistema (Entry-Exit tarif)
B30: Vstopno/Izstopne (Entry-Exit) tarife - brez upoštevanja korekcijskega faktorja vstopno/izstopnih tarif
B33: Vstopno/Izstopne tarife [EUR/(kWh/dan)] | F33: 0.9 | G33: Tehnične zmogljivosti vstopno/izstopnih točk
B34: Vstopno/Izstopne točke | C34: Vstopne tarife | D34: =CALC!D3+CALC!D6 -> 0.08182652614 | E34: =C38*$F$33 -> 0.01992041865 | F34: =C39*$F$33 -> 0.4562084059 | G34: Vstopna zmogljivosti [kWh/dan] | H34: Izstopna zmogljivosti [kWh/dan]
C35: Izstopne tarife | D35: Ceršak | E35: Rogatec | F35: Šempeter pri Gorici
B36: Slovenija | C36: =CALC!C9 -> 0.364521787 | D36: =D$34+$C36 -> 0.4463483132 | E36: =$E$34+C36 -> 0.3844422057 | F36: =F$34+$C36 -> 0.8207301929 | G36: 0 | H36: 73643000
B37: Ceršak | C37: =D34*$F$33 -> 0.07364387353 | D37: 0 | E37: =CALC!$F$11+C37 -> 0.07364387353 | F37: =F$34+$C37 -> 0.5298522794 | G37: 139155000 | H37: 0
B38: Rogatec | C38: =CALC!C8 -> 0.0221337985 | D38: =D$34+$C38 -> 0.1039603246 | E38: 0 | F38: =F$34+$C38 -> 0.4783422044 | G38: 7731000 | H38: 68289000
B39: Šempeter pri Gorici | C39: =CALC!C10 -> 0.5068982287 | D39: =D$34+$C39 -> 0.5887247549 | E39: =CALC!$F$11+C39 -> 0.5068982287 | F39: 0 | G39: 28316000 | H39: 25742000
B43: Vstopno/Izstopne točke | C43: Povprečen zakup prenosnih zmogljivosti [kWh/dan] | E43: Prihodki iz naslova zakupa prenosnih zmogljivosti [€]
C44: Vstopne zmogljivosti [kWh/dan] | D44: Izstopne zmogljivosti [kWh/dan] | E44: Vstopne zmogljivosti [€] | F44: Izstopne zmogljivosti [€]
B46: Slovenija | C46: 0 | D46: 53212366 | E46: =$C$46*C36*F33 -> 0 | F46: =$D$46*C36 -> 19397066.75
B47: Ceršak | C47: 44336352 | D47: 0 | E47: =$C$47*D34 -> 3627889.666 | F47: =$D$47*C37 -> 0
B48: Rogatec | C48: 1004773 | D48: 13427254 | E48: =$C$48*E34 -> 20015.49881 | F48: =$D$48*C38 -> 297196.1345
B49: Šempeter pri Gorici | C49: 1797658 | D49: 692165 | E49: =$C$49*F34 -> 820106.6905 | F49: =$D$49*C39 -> 350857.2125
B50: Skupaj | C50: =SUM(C46:C49) -> 47138783 | D50: =SUM(D46:D49) -> 67331785 | E50: 4468011.855 | F50: 20045120.09
E51: Skupni prihodek (nekorigiran) | F51: =E50+F50 -> 24513131.95
B52: Opomba:
B53: ="Ne določljive vstopno izstopne tarifne postavke se določijo kot "&TEXT(F33,"## %")&" vrednosti določljivih tarifnih postavk." -> Ne določljive vstopno izstopne tarifne postavke se določijo kot 90 % vrednosti določljivih tarifnih postavk.
B55: Vstopno/Izstopne (Entry-Exit) tarife - z upoštevanjem korekcijskega faktorja vstopno/izstopnih tarif
B58: Vstopno/Izstopne tarife [EUR/(kWh/dan)] | F58: 0.9
B59: Vstopno/Izstopne točke | C59: Vstopne tarife | D59: =D34*D79 -> 0.1402041293 | E59: =C63*$F$58 -> 0.03413226839 | F59: =C64*$F$58 -> 0.7816817518
C60: Izstopne tarife | D60: Ceršak | E60: Rogatec | F60: Šempeter pri Gorici
B61: Slovenija | C61: =C36*$D$79 -> 0.6245830314 | D61: =D$59+$C61 -> 0.7647871606 | E61: =E$59+$C61 -> 0.6587152998 | F61: =F$59+$C61 -> 1.406264783
B62: Ceršak | C62: =D59*$F$58 -> 0.1261837163 | D62: 0 | E62: =C62+E59 -> 0.1603159847 | F62: =C62+F59 -> 0.9078654681
B63: Rogatec | C63: =C38*$D$79 -> 0.03792474265 | D63: =D$59+$C63 -> 0.1781288719 | E63: 0 | F63: =$C$63+F59 -> 0.8196064945
B64: Šempeter pri Gorici | C64: =C39*$D$79 -> 0.8685352798 | D64: =E$59+$C64 -> 0.9026675482 | E64: =C64+E59 -> 0.9026675482 | F64: 0
B67: Vstopno/Izstopne točke | C67: Prihodki iz naslova zakupa prenosnih zmogljivosti [€]
C68: Vstopne zmogljivosti [€] | D68: Izstopne zmogljivosti [€]
B70: Slovenija | C70: =$C$46*C61 -> 0 | D70: =$D$46*C61 -> 33235540.86
B71: Ceršak | C71: =$C$47*D59 -> 6216139.626 | D71: =$D$47*C62 -> 0
B72: Rogatec | C72: =$C$48*E59 -> 34295.1817 | D72: =$D$48*C63 -> 509225.1525
B73: Šempeter pri Gorici | C73: =$C$49*F59 -> 1405196.455 | D73: =$D$49*C64 -> 601169.7219
B74: Skupaj | C74: =SUM(C70:C73) -> 7655631.263 | D74: =SUM(D70:D73) -> 34345935.74
C75: Pričakovan ciljni prihodek [€] | D75: =C74+D74 -> 42001567
D78: Korekcijski faktor vstopno/izstopnih tarif za dosego pričakovanega ciljnega prihodka
C79: Korekcijski faktor vstopno/izstopnih tarif Kf(EE) | D79: 1.713431278
B81: Vstopno/Izstopne (Entry-Exit) tarife - Tarifna tabela
B83: tbl_Entry-Exit
B84: Vstopno/izstopne tarife (Entry/Exit tarife) [EUR/(kWh/dan)] | C84: Ceršak | D84: Rogatec | E84: Šempeter pri Gorici | F84: Slovenija
B85: Vstopna (Entry) tarifa | C85: =ROUND(D59,5) -> 0.1402 | D85: =ROUND(E59,5) -> 0.03413 | E85: =ROUND(F59,5) -> 0.78168 | F85: =ROUND(AVERAGE(C85:E85),5) -> 0.31867
B86: Izstopna (Exit) tarifa | C86: =ROUND(C62,5) -> 0.12618 | D86: =ROUND(C63,5) -> 0.03792 | E86: =ROUND(C64,5) -> 0.86854 | F86: =ROUND(C61,5) -> 0.62458

Sheet CALC (hidden)
D1: Strošek enote ob vršni obremenitvi [EUR/(kWh/dan)] | E1: Pričakovan prihodek [EUR]
D2: A do B | E2: A do B
B3: Odsek dostopa do prenosnega sistema | C3: Ceršak | D3: 0.08182652614 | E3: 8708729.589
B4: Skupaj | E4: 8708729.589
C5: Sistemska vstopna točka | D5: B | E5: B
C6: Sistemska vstopna tarifa (Entry tariffs) | D6: 0
B7: Sistemska izstopna točka | D7: Vstopna + Izstopna
B8: Rogatec | C8: 0.0221337985 | D8: 0.0221337985 | E8: 593999.5711
B9: Slovenija | C9: 0.364521787 | D9: 0.364521787 | E9: 19576862.74
B10: Šempeter pri Gorici | C10: 0.5068982287 | D10: 0.5068982287 | E10: 13121975.1
B11: Skupaj | E11: 33292837.41
B12: Skupaj | E12: 42001567
